bitfinex-derivatives/quotes_BTCF0:USTF0_20251215
["timestamp","ask_amount","ask_price","bid_price","bid_amount"]
[1765826998045,1.4088282,86147.0,86146.0,0.3628]
[1765826998645,1.4088282,86147.0,86146.0,0.3618]
[1765826998953,1.4088282,86147.0,86146.0,0.3628]
[1765826999648,0.66747408,86152.0,86151.0,0.68553]
[1765826999848,0.6673,86151.0,86150.0,0.0116077]
[1765827000154,0.73013408,86152.0,86147.0,0.0116081]
[1765827000155,0.6673,86148.0,86147.0,0.0116081]
[1765827000351,0.6673,86148.0,86146.0,0.3628]
[1765827000352,0.6673,86147.0,86146.0,0.002]
[1765827000651,0.6673,86144.0,86143.0,1.5]
[1765827000843,1.39726,86144.0,86143.0,1.5]
[1765827001443,0.87192,86139.0,86138.0,0.03361903]
[1765827001657,0.6673,86139.0,86138.0,0.71914903]
[1765827001843,1.04633,86150.0,86149.0,0.68199]
[1765827002039,0.69588396,86144.0,86143.0,0.6945987]
[1765827002249,0.68427526,86144.0,86143.0,0.6945987]
[1765827002448,0.68570408,86152.0,86151.0,0.68199]
[1765827002649,1.45566408,86152.0,86151.0,0.68199]
[1765827002852,1.45566408,86152.0,86151.0,0.68302411]
[1765827003950,1.45566408,86152.0,86151.0,0.00103411]
[1765827004357,0.72770408,86152.0,86151.0,0.68302411]
[1765827004755,0.07383462,86181.0,86151.0,0.68302411]
[1765827004756,0.0116043,86177.0,86157.0,0.89527]
[1765827004957,0.6971343,86177.0,86176.0,0.3529]
[1765827005156,0.68553,86174.0,86166.0,0.21328]
[1765827005454,0.33215,86172.0,86171.0,0.693595]
[1765827005657,0.84553,86172.0,86171.0,0.68199]
[1765827006056,0.84553,86172.0,86171.0,0.00103411]
[1765827006365,0.84553,86172.0,86171.0,0.68302411]
[1765827006556,0.16,86172.0,86171.0,0.68302411]
[1765827007061,0.162,86172.0,86171.0,0.68302411]
[1765827007260,0.052,86172.0,86171.0,0.68302411]
[1765827007462,0.002,86172.0,86171.0,0.68302411]
[1765827008064,0.68753,86172.0,86171.0,0.00103411]
[1765827008869,0.68553,86172.0,86171.0,0.00103411]
[1765827009273,0.68553,86172.0,86171.0,0.68302411]
[1765827009576,0.68553,86172.0,86171.0,0.00103411]
[1765827009577,0.68753,86172.0,86171.0,0.00103411]
[1765827010073,0.68653,86172.0,86171.0,0.00103411]
[1765827010274,0.68653,86172.0,86163.0,0.00017408]
[1765827010275,0.697136,86164.0,86163.0,0.00017408]
[1765827010581,1.787856,86164.0,86163.0,0.00017408]
[1765827011879,1.790856,86164.0,86163.0,0.00017408]
[1765827012974,1.792856,86164.0,86163.0,0.00017408]
[1765827013174,1.791856,86164.0,86163.0,0.00017408]
[1765827013379,1.789856,86164.0,86163.0,0.00017408]
[1765827013577,1.791856,86164.0,86163.0,4.08e-06]
[1765827014979,1.431056,86164.0,86163.0,4.08e-06]
[1765827015880,1.429056,86164.0,86163.0,4.08e-06]
[1765827016082,1.431056,86164.0,86163.0,4.08e-06]
[1765827016478,1.41745,86164.0,86163.0,0.68199408]
[1765827016674,0.73292,86164.0,86163.0,0.68199408]
[1765827017072,0.73092,86164.0,86163.0,0.68199408]
[1765827017268,0.73192,86164.0,86163.0,0.68199408]
[1765827017468,0.002,86164.0,86163.0,0.68199408]
[1765827018283,0.001,86164.0,86163.0,0.68299408]
[1765827018798,0.09112,86173.0,86172.0,0.6935949]
[1765827018976,0.15112,86173.0,86172.0,1.0543949]
[1765827019686,0.0116023,86191.0,86179.0,0.6935939]
[1765827019879,0.06017408,86180.0,86179.0,1.4543939]
[1765827020072,1.4629214,86199.0,86198.0,0.68199]
[1765827020274,0.17,86199.0,86198.0,0.68199]
[1765827021483,0.17,86199.0,86198.0,0.70192592]
[1765827022093,0.17,86199.0,86198.0,0.79581186]
[1765827022786,0.17,86199.0,86198.0,0.79681186]
[1765827023375,0.17,86199.0,86198.0,0.79581186]
[1765827023694,0.00017408,86207.0,86206.0,0.6935903]
[1765827023993,0.19017408,86207.0,86206.0,1.0543903]
[1765827024185,0.87570408,86207.0,86206.0,1.0543903]
[1765827024691,0.68553,86203.0,86202.0,0.0116008]
[1765827024886,0.87553,86203.0,86202.0,0.6935908]
[1765827026496,0.68553,86200.0,86199.0,0.3608]
[1765827026685,0.08,86200.0,86199.0,1.04279]
[1765827027997,0.76553,86200.0,86199.0,1.04279]
[1765827028383,0.76553,86200.0,86199.0,0.68199]
[1765827028691,0.6971312,86199.0,86198.0,0.01993592]
[1765827028896,0.6971312,86199.0,86190.0,0.00017408]
[1765827028897,0.68553,86191.0,86190.0,0.68216408]
[1765827029091,0.6971323,86191.0,86190.0,0.68216408]
[1765827029288,0.6971323,86191.0,86190.0,0.70187183]
[1765827029483,0.68553,86191.0,86190.0,0.70187183]
[1765827030298,0.68653,86191.0,86190.0,0.70187183]
[1765827030887,0.6981323,86191.0,86190.0,0.70187183]
[1765827031288,0.68653,86191.0,86190.0,0.70187183]
[1765827031792,0.68553,86191.0,86190.0,0.01988183]
[1765827032093,0.68553,86191.0,86190.0,0.00017408]
[1765827032785,0.68553,86191.0,86190.0,0.67247408]
[1765827032986,0.68753,86191.0,86190.0,0.34535408]
[1765827033400,0.68653,86191.0,86190.0,0.67247408]
[1765827033700,0.003,86191.0,86190.0,0.88617408]
[1765827034081,0.68108,86191.0,86190.0,0.88617408]
[1765827034893,0.67908,86191.0,86190.0,0.67247408]
[1765827035089,0.67908,86191.0,86190.0,0.00017408]
[1765827035090,0.68008,86191.0,86190.0,0.00017408]
[1765827035395,0.68008,86191.0,86190.0,0.67247408]
[1765827035593,0.67908,86191.0,86190.0,1.03327408]
[1765827035792,0.0116021,86195.0,86194.0,0.6723]
[1765827036003,0.7006821,86195.0,86194.0,0.6723]
[1765827036188,0.68008,86191.0,86190.0,0.70615408]
[1765827036389,0.002,86191.0,86190.0,1.04487658]
[1765827036985,0.35507,86191.0,86190.0,1.04487658]
[1765827037796,0.35407,86191.0,86190.0,1.04487658]
[1765827038003,0.68008,86191.0,86190.0,0.36097408]
[1765827038501,0.001,86191.0,86190.0,1.24797408]
[1765827038691,0.68008,86191.0,86190.0,1.03427408]
[1765827039196,0.6906812,86200.0,86199.0,0.011601]
[1765827039403,0.7906812,86200.0,86199.0,0.011601]
[1765827040198,0.67908,86199.0,86198.0,0.70598]
[1765827040500,0.75908,86199.0,86198.0,1.0331]
[1765827041195,0.08,86199.0,86198.0,1.0331]
[1765827041602,0.43307,86199.0,86198.0,1.0331]
[1765827041802,0.43407,86199.0,86198.0,1.0331]
[1765827042101,0.081,86199.0,86198.0,1.0331]
[1765827042297,0.75908,86199.0,86198.0,0.3608]
[1765827042496,0.75908,86199.0,86198.0,0.3618]
[1765827042700,0.78620525,86199.0,86198.0,0.001]
[1765827043204,0.6906823,86191.0,86190.0,0.00017408]
[1765827043403,1.80820755,86191.0,86190.0,0.00017408]
[1765827044204,1.44740755,86191.0,86190.0,0.00017408]
[1765827044399,1.44740755,86191.0,86190.0,0.67247408]
[1765827044400,0.6906823,86191.0,86190.0,0.67247408]
[1765827044610,1.4202423,86191.0,86190.0,0.00017408]
[1765827044899,1.4242423,86191.0,86190.0,0.00017408]
[1765827045303,1.4272423,86191.0,86190.0,0.34535408]
[1765827045494,1.4272423,86191.0,86190.0,0.00017408]
[1765827045897,1.4232423,86191.0,86190.0,0.00017408]
[1765827046095,1.4212423,86191.0,86190.0,0.00017408]
[1765827046295,1.08463,86191.0,86190.0,0.67247408]
[1765827046501,0.73156,86191.0,86190.0,0.67247408]
[1765827047407,0.73256,86191.0,86190.0,0.67247408]
[1765827048090,0.73056,86191.0,86190.0,0.67247408]
[1765827048504,0.35307,86201.0,86200.0,0.6839011]
[1765827048803,0.35307,86201.0,86193.0,0.2137]
[1765827048804,0.35324408,86207.0,86206.0,0.6839003]
[1765827049106,0.58040272,86207.0,86206.0,0.6839003]
[1765827049802,0.22733272,86207.0,86206.0,0.6839003]
[1765827050194,0.22833272,86207.0,86206.0,0.6839003]
[1765827050393,0.90741272,86207.0,86206.0,0.6723]
[1765827050796,0.58140272,86207.0,86206.0,0.6723]
[1765827050993,0.23033272,86207.0,86206.0,0.6723]
[1765827051198,0.92101292,86207.0,86206.0,0.34518]
[1765827051598,0.67908,86206.0,86205.0,0.3608]
[1765827051802,0.89623864,86206.0,86205.0,0.3608]
[1765827053308,0.67908,86197.0,86196.0,1.0331]
[1765827053506,0.67908,86197.0,86196.0,0.70598]
[1765827053710,0.67908,86197.0,86196.0,0.3608]
[1765827053711,0.70620314,86197.0,86196.0,0.3608]
[1765827054111,0.70620314,86197.0,86183.0,0.0116034]
[1765827054112,0.6906823,86191.0,86183.0,0.0116034]
[1765827054306,0.6906823,86191.0,86185.0,0.0116031]
[1765827054501,0.6906823,86191.0,86184.0,0.0194794]
[1765827055010,0.6906823,86191.0,86190.0,0.01177658]
[1765827055208,0.67908,86191.0,86190.0,1.25857658]
[1765827055396,0.67908,86191.0,86190.0,1.25957658]
[1765827055599,0.68108,86191.0,86190.0,1.04587658]
[1765827055804,0.68108,86191.0,86190.0,1.25957658]
[1765827056506,0.67908,86191.0,86190.0,1.24797408]
[1765827056708,0.70921024,86191.0,86190.0,0.00017408]
[1765827056905,1.07001024,86191.0,86190.0,0.00017408]
[1765827057307,1.06801024,86191.0,86190.0,0.00017408]
[1765827057604,1.79753024,86191.0,86190.0,0.00017408]
[1765827057807,1.43673024,86191.0,86190.0,0.00017408]
[1765827058114,1.43873024,86191.0,86190.0,0.00017408]
[1765827059217,1.44073024,86191.0,86190.0,0.00017408]
[1765827059806,1.43873024,86191.0,86190.0,0.00017408]
[1765827060011,0.67908,86181.0,86180.0,0.3608]
[1765827060215,1.40864,86181.0,86180.0,0.3608]
[1765827060609,0.690685,86171.0,86170.0,0.3608]
[1765827060807,0.0116056,86167.0,86166.0,0.3608]
[1765827061003,0.6906856,86167.0,86166.0,0.3608]
[1765827061215,0.72956,86171.0,86166.0,1.26640782]
[1765827061416,0.00017408,86175.0,86174.0,0.6839046]
[1765827061607,0.003,86181.0,86180.0,0.6839038]
[1765827061811,0.003,86181.0,86180.0,1.0447038]
[1765827061812,0.043,86181.0,86180.0,1.0447038]
[1765827062021,0.003,86181.0,86180.0,1.0447038]
[1765827062918,0.00017408,86189.0,86188.0,0.6843027]
[1765827063218,0.44347408,86189.0,86188.0,1.0451027]
[1765827064206,0.79848408,86189.0,86188.0,1.0335]
[1765827064811,0.6999137,86181.0,86180.0,0.3638]
[1765827065018,1.4294737,86181.0,86180.0,0.3638]
[1765827065219,1.4294737,86181.0,86180.0,0.3608]
[1765827065622,0.73134,86180.0,86179.0,0.0283597]
[1765827065921,0.68831,86173.0,86172.0,0.67541888]
[1765827066122,0.68831,86173.0,86172.0,1.03621888]
[1765827066715,0.68831,86179.0,86178.0,0.6752441]
[1765827066915,0.3333,86179.0,86178.0,0.6752441]
[1765827067122,0.7421637,86181.0,86180.0,0.86687]
[1765827067320,1.4304737,86181.0,86180.0,0.66364]
[1765827067521,0.68831,86177.0,86176.0,0.3477243]
[1765827067714,0.3333,86177.0,86176.0,0.6752443]
[1765827068116,0.68831,86177.0,86176.0,0.66364]
[1765827068311,0.3333,86177.0,86176.0,0.66364]
[1765827068519,0.68831,86177.0,86176.0,0.66364]
[1765827068719,0.68931,86177.0,86176.0,0.66364]
[1765827069724,0.002,86177.0,86176.0,0.66364]
[1765827069913,0.002,86177.0,86176.0,0.74623381]
[1765827070120,0.002,86177.0,86176.0,0.66364]
[1765827070428,1.4623213,86199.0,86188.0,0.66364]
[1765827070621,1.4623213,86199.0,86188.0,1.0360427]
[1765827070622,0.10017408,86189.0,86188.0,1.0360427]
[1765827072421,0.10017408,86189.0,86188.0,1.12858463]
[1765827073324,0.0115997,86211.0,86210.0,0.6752398]
[1765827073512,0.57227135,86211.0,86210.0,0.66364]
[1765827073823,0.8999097,86211.0,86210.0,0.66364]
[1765827074023,0.2,86211.0,86210.0,0.86687]
[1765827074429,0.203,86211.0,86210.0,0.86687]
[1765827074726,0.207,86211.0,86210.0,0.86687]
[1765827077729,0.007,86211.0,86210.0,0.86687]
[1765827077921,0.057,86211.0,86210.0,0.86687]
[1765827078226,0.00017408,86219.0,86217.0,0.6752388]
[1765827078524,0.3333,86239.0,86238.0,0.675236]
[1765827078727,0.5406106,86239.0,86238.0,0.675236]
[1765827079120,0.5406092,86239.0,86238.0,0.675236]
[1765827079321,0.86831,86239.0,86238.0,0.02040773]
[1765827079535,0.6999069,86231.0,86230.0,0.00017397]
[1765827079727,0.68831,86237.0,86236.0,0.6752361]
[1765827079929,0.85831,86237.0,86236.0,0.6752361]
[1765827080530,0.85831,86237.0,86236.0,0.66364]
[1765827080928,0.86031,86237.0,86236.0,0.66364]
[1765827084127,0.86031,86237.0,86236.0,1.02444]
[1765827084326,0.85931,86237.0,86236.0,1.02444]
[1765827084529,0.85831,86237.0,86236.0,1.02544]
[1765827084728,0.85831,86237.0,86236.0,1.02644]
[1765827085935,0.5033,86237.0,86236.0,1.02644]
[1765827086127,0.17,86237.0,86236.0,1.02644]
[1765827086633,0.17,86237.0,86236.0,1.02544]
[1765827086935,0.85831,86237.0,86236.0,1.02644]
[1765827087126,0.8699061,86237.0,86236.0,1.02644]
[1765827087327,0.8699061,86237.0,86236.0,0.3628]
[1765827087527,0.8699061,86237.0,86236.0,0.002]
[1765827088325,0.85831,86237.0,86236.0,0.33712]
[1765827088532,0.85831,86237.0,86236.0,0.33812]
[1765827088732,0.85831,86237.0,86236.0,0.002]
[1765827088931,0.68831,86231.0,86230.0,0.01980438]
[1765827089136,1.6291469,86231.0,86230.0,0.00017397]
[1765827089341,1.6291469,86231.0,86230.0,0.02039631]
[1765827090339,1.61751,86231.0,86230.0,0.68403631]
[1765827090534,1.2635,86231.0,86230.0,0.68403631]
[1765827090923,0.9302,86231.0,86230.0,0.68403631]
[1765827091333,0.9302,86231.0,86230.0,0.68503631]
[1765827091536,0.201,86231.0,86230.0,0.68503631]
[1765827091939,0.2,86231.0,86230.0,0.68503631]
[1765827092137,0.2,86231.0,86230.0,0.68603631]
[1765827093238,0.2,86231.0,86230.0,0.68503631]
[1765827093432,0.2,86231.0,86230.0,0.68603631]
[1765827094236,0.00017397,86247.0,86242.0,0.0115955]
[1765827094436,0.20017397,86247.0,86246.0,0.67433]
[1765827094642,0.17413824,86247.0,86246.0,0.67433]
[1765827095138,0.68908864,86258.0,86257.0,0.0115934]
[1765827095443,0.84908864,86258.0,86257.0,0.0115934]
[1765827095838,0.84908864,86258.0,86257.0,0.3506834]
[1765827096346,0.85108864,86258.0,86257.0,0.3506834]
[1765827097434,0.85208864,86258.0,86257.0,0.6859234]
[1765827097836,0.85108864,86258.0,86257.0,0.6859234]
[1765827098036,0.85208864,86258.0,86257.0,0.6859234]
[1765827098339,0.85208864,86258.0,86255.0,0.3608]
[1765827098340,0.68677,86256.0,86255.0,0.3608]
[1765827098546,0.84677,86256.0,86255.0,0.3608]
[1765827098746,0.68677,86250.0,86249.0,0.67450397]
[1765827099040,0.80677,86250.0,86249.0,0.67450397]
[1765827100046,0.12,86250.0,86249.0,0.67450397]
[1765827100946,0.121,86250.0,86249.0,0.67450397]
[1765827101641,0.4627,86250.0,86249.0,0.67450397]
[1765827101840,0.121,86250.0,86249.0,0.67450397]
[1765827102558,0.80777,86250.0,86249.0,0.67450397]
[1765827103051,0.121,86250.0,86249.0,0.67450397]
[1765827103246,0.80777,86250.0,86249.0,0.67450397]
[1765827104252,0.121,86250.0,86249.0,0.67450397]
[1765827106554,0.12032322,86250.0,86249.0,0.67450397]
[1765827108558,0.001,86250.0,86249.0,0.67450397]
[1765827108744,0.00231864,86258.0,86257.0,0.6938534]
[1765827108948,0.11,86271.0,86265.0,0.8969224]
[1765827109157,0.17017397,86266.0,86265.0,1.2577224]
[1765827109953,0.0115883,86295.0,86265.0,1.2577224]
[1765827109954,1.04018,86293.0,86292.0,0.68226]
[1765827110153,1.26733445,86293.0,86292.0,0.68226]
[1765827110352,1.24018,86293.0,86292.0,0.68226]
[1765827110862,0.87938,86293.0,86292.0,0.70034139]
[1765827111258,0.88138,86293.0,86292.0,0.70034139]
[1765827112761,0.88338,86293.0,86292.0,0.70034139]
[1765827113357,0.204,86293.0,86292.0,0.90341139]
[1765827113565,0.00231756,86298.0,86297.0,0.68226]
[1765827113865,0.10231756,86298.0,86297.0,1.0546481]
[1765827114167,0.78169756,86298.0,86297.0,1.0546481]
[1765827114354,0.10231756,86298.0,86297.0,1.0546481]
[1765827114953,0.10531756,86298.0,86297.0,1.0546481]
[1765827115155,0.88319,86319.0,86318.0,0.3528753]
[1765827115359,1.06319,86319.0,86318.0,1.0546453]
[1765827115668,0.85938,86319.0,86318.0,1.0546453]
[1765827115964,0.18,86319.0,86318.0,1.0546453]
[1765827116459,0.52028,86319.0,86318.0,1.0546453]
[1765827116962,0.85938,86319.0,86318.0,1.0546453]
[1765827117859,0.86338,86319.0,86318.0,1.0546453]
[1765827118051,0.186,86319.0,86318.0,1.0546453]
[1765827118257,0.036,86319.0,86318.0,1.0546453]
[1765827118555,0.034,86319.0,86318.0,1.0546453]
[1765827119160,0.032,86319.0,86318.0,1.0546453]
[1765827119462,0.00017387,86327.0,86326.0,0.6938442]
[1765827119656,0.17017387,86327.0,86326.0,1.0546442]
[1765827119859,0.84955387,86327.0,86326.0,1.0546442]
[1765827120255,0.17017387,86327.0,86326.0,1.0546442]
[1765827120962,0.84955387,86327.0,86326.0,1.0546442]
[1765827121266,0.17017387,86327.0,86326.0,1.0546442]
[1765827121970,0.0115813,86348.0,86337.0,0.6827327]
[1765827122168,0.87390649,86338.0,86337.0,1.0435327]
[1765827123159,0.87390649,86338.0,86337.0,0.3608]
[1765827123465,0.20331649,86338.0,86337.0,1.03066]
[1765827124061,0.20531649,86338.0,86337.0,1.03066]
[1765827124460,0.00531649,86338.0,86337.0,1.03066]
[1765827124662,0.09531649,86338.0,86337.0,1.03066]
[1765827124869,0.42129649,86338.0,86337.0,1.03066]
[1765827125264,0.77848909,86338.0,86337.0,0.3608]
[1765827125769,0.87391,86330.0,86329.0,0.00017376]
[1765827126167,0.67690649,86338.0,86337.0,0.6814427]
[1765827126373,0.76690649,86338.0,86337.0,0.3723827]
[1765827126859,0.76690649,86338.0,86337.0,1.0422427]
[1765827127065,0.09331649,86338.0,86337.0,1.0422427]
[1765827127566,0.09231649,86338.0,86337.0,1.0422427]
[1765827127973,0.09431649,86338.0,86337.0,1.0422427]
[1765827128173,0.09531649,86338.0,86337.0,1.0422427]
[1765827129476,0.09531649,86338.0,86337.0,2.5422427]
[1765827129663,0.09431649,86338.0,86337.0,2.5422427]
[1765827129865,0.09231649,86338.0,86337.0,2.5422427]
[1765827130067,0.09331649,86338.0,86337.0,2.5422427]
[1765827130671,0.09231649,86338.0,86337.0,2.86946722]
[1765827130875,0.00010746,86346.0,86345.0,0.6814416]
[1765827131071,0.18010746,86346.0,86345.0,1.7705216]
[1765827132977,0.18110746,86346.0,86345.0,1.7705216]
[1765827133574,0.18110746,86346.0,86345.0,1.8654612]
[1765827136166,0.18110746,86346.0,86345.0,1.98127499]
[1765827136367,0.03110746,86346.0,86345.0,1.98127499]
[1765827138170,0.03110746,86346.0,86345.0,1.25299499]
[1765827138382,0.03110746,86346.0,86345.0,1.98115499]
[1765827139085,0.03110746,86346.0,86345.0,1.8653012]
[1765827139288,0.03110746,86346.0,86345.0,1.1371812]
[1765827139578,0.03110746,86346.0,86345.0,1.8653012]
[1765827139887,0.70269746,86346.0,86345.0,0.3608]
[1765827140489,0.6831726,86338.0,86337.0,1.5]
[1765827140674,0.6831736,86330.0,86329.0,0.00017376]
[1765827141183,0.6831736,86330.0,86329.0,1.50017376]
[1765827141686,0.6831736,86330.0,86300.0,4e-05]
[1765827141687,0.6831765,86309.0,86300.0,4e-05]
[1765827141886,0.67159,86309.0,86307.0,0.0115866]
[1765827142189,0.67159,86309.0,86308.0,1.5000834]
[1765827142583,0.67159,86309.0,86308.0,1.8608834]
[1765827142886,0.6831765,86309.0,86308.0,1.8608834]
[1765827143091,0.67159,86309.0,86308.0,1.8618834]
[1765827143384,0.67159,86309.0,86308.0,1.8648834]
[1765827145084,0.67159,86309.0,86308.0,0.0040834]
[1765827145280,0.6831775,86301.0,86300.0,0.00021376]
[1765827145583,0.67159,86291.0,86290.0,1.59496303]
[1765827145781,0.67159,86291.0,86290.0,1.51818991]
[1765827146189,0.67168082,86291.0,86290.0,1.51818991]
[1765827146481,0.67159,86278.0,86277.0,0.08255485]
[1765827146787,0.67159,86275.0,86274.0,1.03066]
[1765827146991,0.67159,86275.0,86274.0,2.54877146]
[1765827148788,0.67159,86275.0,86274.0,1.87891146]
[1765827149284,0.67159,86275.0,86274.0,1.51811146]
[1765827149491,0.67159,86275.0,86274.0,1.52311146]
[1765827149797,0.67159,86275.0,86274.0,1.52911146]
[1765827152988,0.6684201,86283.0,86282.0,0.69063]
[1765827153783,0.6684201,86283.0,86282.0,0.34527]
[1765827153981,0.69323,86278.0,86277.0,0.67249]
[1765827154185,0.69323,86278.0,86277.0,0.7545429]
[1765827155182,0.3608,86285.0,86282.0,0.67249]
[1765827155183,0.70482,86283.0,86282.0,0.67249]
[1765827155390,0.7048205,86279.0,86278.0,0.76613575]
[1765827155690,0.7048205,86279.0,86277.0,0.08605515]
[1765827155691,0.69323,86278.0,86277.0,0.08605515]
[1765827156287,0.69323,86278.0,86277.0,0.09205515]
[1765827156488,1.05403,86278.0,86277.0,0.01]
[1765827157292,1.05403,86278.0,86277.0,0.006]
[1765827158090,0.69323,86270.0,86268.0,0.10052704]
[1765827158303,0.69323,86270.0,86263.0,0.10327916]
[1765827158304,1.05403,86270.0,86267.0,0.08205515]
[1765827158485,1.05403,86270.0,86266.0,0.08205515]
[1765827158797,1.05403,86270.0,86267.0,0.01821519]
[1765827159182,1.05403,86270.0,86264.0,0.08205515]
[1765827159381,0.69323,86259.0,86258.0,0.00231864]
[1765827159684,0.7048232,86259.0,86258.0,0.00231864]
[1765827159992,0.7048232,86259.0,86258.0,0.02090252]
[1765827160193,0.7048232,86259.0,86258.0,0.00231864]
[1765827160495,0.7048232,86259.0,86258.0,0.00531864]
[1765827160988,0.7048232,86259.0,86258.0,0.33542864]
[1765827161185,0.7048232,86259.0,86258.0,0.00531864]
[1765827161386,0.7048232,86259.0,86258.0,0.0234955]
[1765827161692,0.7048232,86259.0,86258.0,0.00631864]
[1765827162090,0.3610532,86259.0,86258.0,0.6971644]
[1765827162387,1.19235,86263.0,86262.0,0.6840828]
[1765827164687,0.49912,86263.0,86262.0,0.6840828]
[1765827164891,9.966e-05,86270.0,86269.0,0.6840818]
[1765827165692,0.34955966,86270.0,86269.0,0.6840818]
[1765827166487,9.966e-05,86270.0,86269.0,0.6840818]
[1765827167096,0.69332966,86270.0,86268.0,0.3608]
[1765827167397,0.69332966,86270.0,86262.0,0.001]
[1765827167398,0.69323,86263.0,86262.0,0.001]
[1765827167792,0.69323,86263.0,86262.0,1.501]
[1765827167993,0.7048232,86259.0,86258.0,0.0206744]
[1765827168385,0.7048232,86259.0,86258.0,1.5206744]
[1765827169592,1.4334225,86265.0,86264.0,0.67249]
[1765827170397,0.3608,86269.0,86267.0,0.6840821]
[1765827170398,0.3610521,86268.0,86267.0,0.6840821]
[1765827170694,0.7286,86268.0,86267.0,0.6840821]
[1765827171094,1.07806,86268.0,86267.0,0.82849646]
[1765827171394,0.7286,86268.0,86267.0,0.82849646]
[1765827171590,0.7286,86268.0,86267.0,0.6840821]
[1765827171787,9.966e-05,86270.0,86269.0,0.67249]
[1765827171999,0.01009966,86270.0,86269.0,0.81659574]
[1765827172893,0.01009966,86270.0,86269.0,0.81859574]
[1765827173099,0.01009966,86270.0,86269.0,0.67449]
[1765827174997,0.01009966,86270.0,86269.0,0.67349]
[1765827175202,9.966e-05,86270.0,86269.0,0.67349]
[1765827175603,9.966e-05,86270.0,86269.0,0.67449]
[1765827176007,9.966e-05,86270.0,86269.0,0.67549]
[1765827176400,9.966e-05,86270.0,86269.0,0.67649]
[1765827176605,0.69332966,86270.0,86269.0,0.67749]
[1765827176805,0.69332966,86270.0,86269.0,0.005]
[1765827176999,0.69332966,86270.0,86269.0,0.14930999]
[1765827177199,0.69323,86259.0,86258.0,0.0206744]
[1765827177407,1.4334232,86259.0,86258.0,0.0206744]
[1765827178706,1.4344232,86259.0,86258.0,0.0206744]
[1765827179511,1.4374232,86259.0,86258.0,0.0206744]
[1765827180701,0.69323,86257.0,86256.0,9.222e-05]
[1765827180901,0.7048243,86251.0,86250.0,0.00017386]
[1765827181103,0.7048243,86251.0,86250.0,0.01918899]
[1765827181401,0.3610543,86251.0,86250.0,0.69167899]
[1765827181908,0.69323,86251.0,86250.0,0.69167899]
[1765827182104,1.05341,86255.0,86254.0,0.66356]
[1765827182304,0.7286,86255.0,86254.0,0.66356]
[1765827183014,0.7286,86255.0,86254.0,0.6751538]
[1765827183210,0.7286,86255.0,86250.0,0.01918899]
[1765827183211,0.66424,86251.0,86250.0,0.01918899]
[1765827183509,0.7286,86255.0,86238.0,0.2224059]
[1765827183510,0.66424,86239.0,86238.0,0.885606]
[1765827183697,0.66435379,86239.0,86238.0,0.885606]
[1765827184299,0.32492379,86239.0,86238.0,0.90462734]
[1765827184500,0.00011379,86239.0,86238.0,0.90462734]
[1765827184707,0.00011379,86239.0,86238.0,0.90562734]
[1765827185408,0.00011379,86239.0,86238.0,0.90462734]
[1765827185612,0.00011379,86239.0,86238.0,0.90562734]
[1765827185796,0.66435379,86239.0,86238.0,0.90562734]
[1765827186002,0.66535379,86239.0,86238.0,0.90562734]
[1765827186312,0.00111379,86239.0,86238.0,0.90562734]
[1765827187010,0.32498386,86259.0,86258.0,0.6751533]
[1765827187205,0.03017386,86259.0,86258.0,0.6751533]
[1765827187911,0.02785516,86259.0,86258.0,0.6751533]
[1765827188103,0.02793325,86259.0,86258.0,0.6751533]
[1765827188299,0.69217325,86259.0,86258.0,0.0115933]
[1765827188609,0.02793325,86259.0,86258.0,0.6751533]
[1765827189003,0.02893325,86259.0,86258.0,0.6751533]
[1765827189306,0.00107809,86259.0,86258.0,1.0359533]
[1765827191216,0.00017386,86267.0,86266.0,0.6751522]
[1765827191406,0.1316,86278.0,86266.0,0.6751522]
[1765827191407,0.07,86280.0,86279.0,0.66356]
[1765827191603,0.6758292,86289.0,86288.0,0.66356]
[1765827191809,0.87651303,86289.0,86288.0,0.66356]
[1765827192416,0.67583,86283.0,86282.0,0.67515]
[1765827192606,0.85424,86283.0,86282.0,0.67515]
[1765827192809,0.85424,86283.0,86280.0,0.00017386]
[1765827192810,0.66424,86281.0,86280.0,0.00017386]
[1765827193003,0.6758322,86266.0,86265.0,1.02436]
[1765827193217,0.66424,86266.0,86265.0,1.02436]
[1765827194502,0.66424,86266.0,86265.0,0.66356]
[1765827194815,0.66524,86266.0,86265.0,0.66356]
[1765827195116,0.66724,86266.0,86265.0,0.66356]
[1765827195413,0.66724,86266.0,86265.0,0.3386024]
[1765827195609,0.66724,86266.0,86265.0,0.6751524]
[1765827197210,0.6758333,86258.0,86257.0,0.00017386]
[1765827197718,0.6758333,86258.0,86257.0,0.66373386]
[1765827198011,0.6758333,86258.0,86257.0,0.00017386]
[1765827198909,0.6768333,86258.0,86257.0,0.00017386]
[1765827199116,0.6768333,86258.0,86257.0,0.00117386]
[1765827200613,0.6768333,86258.0,86257.0,0.66473386]
[1765827202124,0.6768333,86258.0,86257.0,0.00117386]
[1765827203011,0.6768333,86258.0,86257.0,0.66473386]
[1765827204916,0.3374033,86258.0,86257.0,0.66473386]
[1765827205116,0.0125933,86258.0,86257.0,0.66473386]
[1765827205417,0.0125933,86258.0,86257.0,0.00117386]
[1765827205418,0.6768333,86258.0,86257.0,0.00117386]
[1765827205617,0.6758352,86244.0,86238.0,0.37982134]
[1765827206615,0.6758352,86244.0,86243.0,0.0145952]
[1765827208223,0.6758352,86244.0,86243.0,0.003]
[1765827208612,0.6758352,86244.0,86243.0,0.005]
[1765827209414,0.6758352,86244.0,86243.0,0.002]
[1765827209621,0.6768352,86244.0,86243.0,0.002]
[1765827209822,0.32581,86244.0,86243.0,0.66556]
[1765827210224,0.66424,86242.0,86241.0,0.0115956]
[1765827210721,0.66424,86239.0,86238.0,0.01902134]
[1765827210909,0.66424,86239.0,86238.0,0.66356]
[1765827211116,0.3384053,86244.0,86243.0,0.66356]
[1765827211520,0.6768353,86244.0,86243.0,0.32701]
[1765827212019,0.3608,86246.0,86238.0,0.03032707]
[1765827212020,0.67436,86239.0,86238.0,0.03032707]
[1765827212225,0.67436,86239.0,86238.0,0.0115959]
[1765827212525,0.67436,86239.0,86238.0,0.34537649]
[1765827213116,0.67536,86239.0,86238.0,0.34537649]
[1765827213925,0.67536,86239.0,86238.0,0.67433649]
[1765827215022,0.001,86239.0,86238.0,1.03513649]
[1765827215722,0.00017386,86252.0,86251.0,0.6819143]